Cogmind - Beta 9.1 @@@ ROGUE MODE // 2019.11.06 @ 17:40:13 Player: Finestep Result: Self-destructed Performance ------------- Evolutions (6) 3000 Regions Visited (23) 4600 Robots Destroyed (257) 1285 Value Destroyed (9979) 9979 Prototype IDs (47) 940 Alien Tech Used (0) 0 Bonus (2510) 2510 TOTAL SCORE: 22314 Bonus ------- High Alert Combat Kills 1060 Follower Combat Kills 3397 Network Hubs Disabled 400 Met Data Miner 300 Met Imprinter 300 Was Imprinted 300 Friendly Fire -3247 Cogmind --------- Core Integrity 837/1150 Matter 159/300 Energy 3/100 System Corruption 0% Temperature Cool (4) Location -4/Armory Parts ------- Power (1) Propulsion (5) Cooled Gravmag System Improved Gyrokinetic Inverter Improved Gyrokinetic Inverter Utility (11) Large Storage Unit High-capacity Storage Unit Experimental Signal Interpreter Improved Terrain Scan Processor Advanced Target Analyzer Propulsion Shielding Improved Hacking Suite Advanced System Shield Weapon (2) Inventory (18) Light Quantum Reactor Improved Linear Gravjet Advanced Cooling System Improved Matter Compressor (300) Advanced Armor Integrity Analyzer Advanced Transmission Jammer Advanced Cloaking Device Enhanced Nova Cannon Enhanced Nova Cannon Light Antimatter Cannon Light Antimatter Cannon Fusion Bomb Launcher Fusion Bomb Launcher Makeshift Sword Peak State ------------ Power Light Quantum Reactor Propulsion Gravmag Array Cooled Gravmag System Cooled Gravmag System Cooled Gravmag System Utility Large Storage Unit High-capacity Storage Unit Experimental Signal Interpreter Improved Terrain Scan Processor Advanced Targeting Computer Advanced Target Analyzer Improved Phase Shifter Zionite Weapon Casing Improved Hacking Suite Improved Hacking Suite Advanced System Shield Weapon Light Antimatter Cannon Light Antimatter Cannon Inventory Light Quantum Reactor Improved Gyrokinetic Inverter Improved Gyrokinetic Inverter Improved Linear Gravjet Advanced Cooling System Improved Matter Compressor Advanced Sensor Array Advanced Armor Integrity Analyzer Advanced Transmission Jammer Advanced Cloaking Device Enhanced Nova Cannon Enhanced Nova Cannon Light Antimatter Cannon Light Antimatter Cannon Fusion Bomb Launcher Fusion Bomb Launcher Makeshift Sword [Rating: 118] Favorites ----------- Power Micro Nuclear Core Engine Reinforced Deuterium Engine Power Core Micro Nuclear Core Reactor Quantum Reactor Propulsion Armored Leg Treads Light Treads Leg Armored Leg Wheel Compact Wheel Hover Unit Cooled Gravmag System Utility Large Storage Unit Device Weapon Cycler Storage Large Storage Unit Processor Advanced Targeting Computer Hackware Improved Hacking Suite Protection Light Regenerative Plating Weapon Gauss Rifle Energy Gun Heavy Particle Gun Energy Cannon Heavy Ion Cannon Ballistic Gun Gauss Rifle Ballistic Cannon Assault Cannon Launcher Heavy Missile Launcher Special Weapon Stasis Projector Slashing Weapon Makeshift Sword Build | -11 -10 -9 -9 -8 -7 -7 -7 -7 -7 -7 -6 -6 -6 -6 -6 -5 -5 -5 -5 -5 -5 -4 -4 ------- Run | Scr Mat Mat Min Mat Fac Was Fac Low Low Dat Pro Fac Low Low Zio Pro Fac Ext Cet Arc Hub Fac Arm Slots Evolved 12 | . . 2 . 2 2 . . . . . . 2 . . . . 2 . . . . 2 . Power . | . . . . . . . . . . . . . . . . . . . . . . . . Propulsion 3 | . . . . 1 1 . . . . . . 1 . . . . . . . . . . . Utility 9 | . . 2 . 1 1 . . . . . . 1 . . . . 2 . . . . 2 . Weapon . | . . . . . . . . . . . . . . . . . . . . . . . . Parts Attached 403 | 6 8 2 . 22 5 2 27 14 9 2 15 33 8 39 2 11 12 53 15 24 31 33 30 Power 23 | . 2 . . 4 1 . 2 . . . . 1 1 4 . . 1 3 1 . 1 1 1 Engine 6 | . 2 . . 1 . . . . . . . . . . . . . 3 . . . . . Core 14 | . . . . 3 1 . 2 . . . . 1 1 3 . . 1 . . . 1 1 . Reactor 3 | . . . . . . . . . . . . . . 1 . . . . 1 . . . 1 Propulsion 87 | 2 2 . . 8 1 2 8 2 1 . 1 8 . 7 . . 1 13 2 7 4 10 8 Treads 28 | . . . . 8 1 2 2 . . . . . . . . . . 9 2 2 1 . 1 Leg 37 | . . . . . . . 5 2 1 . 1 8 . 7 . . 1 4 . 5 3 . . Wheel 4 | 2 2 . . . . . . . . . . . . . . . . . . . . . . Hover 18 | . . . . . . . 1 . . . . . . . . . . . . . . 10 7 Flight . | . . . . . . . . . . . . . . . . . . . . . . . . Utility 155 | 2 2 2 . 4 3 . 8 5 4 . 4 13 2 9 . 9 7 24 6 10 16 16 9 Device 76 | . . . . . . . 2 3 2 . 4 5 2 6 . 8 4 12 6 5 8 5 4 Storage 21 | 2 2 2 . 1 1 . 1 . . . . . . . . . 1 4 . . 2 5 . Processor 14 | . . . . . 2 . 1 . . . . 2 . . . . 1 1 . 1 1 3 2 Hackware 6 | . . . . . . . 2 . . . . 1 . . . . . . . . . 3 . Protection 38 | . . . . 3 . . 2 2 2 . . 5 . 3 . 1 1 7 . 4 5 . 3 Artifact . | . . . . . . . . . . . . . . . . . . . . . . . . Weapon 138 | 2 2 . . 6 . . 9 7 4 2 10 11 5 19 2 2 3 13 6 7 10 6 12 Energy Gun 11 | . . . . 1 . . 2 1 2 1 3 . . . . . . . . . . . 1 Energy Cannon 16 | . . . . . . . 1 . 1 . . 3 4 6 . . . 1 . . . . . Ballistic Gun 42 | 2 2 . . 2 . . . 1 . . 2 5 . 5 1 1 1 10 4 4 . 2 . Ballistic Cannon 35 | . . . . 2 . . 5 2 . 1 1 1 . 2 1 . 1 1 1 3 6 1 7 Launcher 17 | . . . . 1 . . 1 2 . . 4 1 . 3 . 1 . 1 . . 1 1 1 Special Weapon 2 | . . . . . . . . . . . . . 1 . . . . . . . . . 1 Impact Weapon . | . . . . . . . . . . . . . . . . . . . . . . . . Slashing Weapon 15 | . . . . . . . . 1 1 . . 1 . 3 . . 1 . 1 . 3 2 2 Piercing Weapon . | . . . . . . . . . . . . . . . . . . . . . . . . Special Melee Weapon . | . . . . . . . . . . . . . . . . . . . . . . . . Unidentified Prototypes 15 | . . . . 1 . . 2 . . . . 1 . . . 2 . 2 2 2 1 . 2 Parts Lost 95 | . 3 4 . 4 . . 2 3 1 . 2 5 1 17 . . 1 20 1 . 17 4 10 Power 13 | . 1 1 . 2 . . . . . . . . 1 4 . . . 2 . . 1 . 1 Propulsion 40 | . 1 1 . 2 . . . 2 . . 1 2 . 6 . . 1 11 . . 9 1 3 Utility 22 | . . . . . . . 1 1 . . . 1 . 2 . . . 3 1 . 4 3 6 Weapon 20 | . 1 2 . . . . 1 . 1 . 1 2 . 5 . . . 4 . . 3 . . Highest Loss Streak 9 | . 2 4 . 2 . . 1 2 1 . 2 2 1 4 . . 1 6 1 . 9 2 8 Average Slot Usage (%) 94 | . 98 83 55 91 99 94 98 99 99 85 99 99 100 99 99 99 99 93 89 80 92 68 90 Engine 1 | . 13 7 . 1 . . . . . . . . . . . . . 3 1 . . . . Core 4 | . . . . 5 7 7 7 7 7 7 7 6 6 2 6 6 5 1 . . 1 3 2 Reactor 1 | . . . . . . . . . . . . . . 3 . . . . 3 5 3 . 2 Treads 5 | . . . . 26 30 24 3 . . . . . . . . . . 9 19 15 4 . . Leg 19 | . . . . . . . 25 29 30 30 29 32 33 32 33 33 28 12 . 2 17 . . Wheel 1 | . 27 17 11 . . . . . . . . . . . . . . . . . . . . Hover 1 | . . . . . . . . . . . . . . . . . . . . . . 12 20 Device 6 | . . . . . . . 1 8 7 7 7 4 4 6 6 5 15 8 10 9 7 6 8 Storage 20 | . 28 44 44 36 23 23 23 23 23 23 23 20 20 20 20 20 17 17 17 17 18 6 10 Processor 13 | . . . . . 14 15 9 7 7 7 7 15 14 13 13 13 17 17 17 22 21 16 20 Hackware 1 | . . . . . . . 2 . . . . . . . . . . . . . . 12 14 Protection 4 | . . . . 6 7 7 6 5 7 7 7 5 6 5 6 6 1 7 5 . 2 . . Ballistic Gun 5 | . 28 13 . 10 . . . 2 . . 2 9 2 4 5 6 4 7 7 2 . 5 . Ballistic Cannon 4 | . . . . 1 15 15 12 4 8 . 6 2 . 2 5 6 2 2 2 . 10 . 2 Naked Turns . | . . . . . . . . . . . . . . . . . . . . . . . . Heaviest Build 143 | 10 56 88 80 98 84 84 86 94 100 100 104 100 91 98 96 102 98 118 127 126 132 143 80 Greatest Support 190 | 26 32 26 16 60 80 110 110 73 78 78 80 100 80 92 92 92 96 122 190 190 80 92 103 Greatest Overweight (x) 28 | . 2 4 4 1 1 1 2 1 1 1 1 1 1 1 1 1 1 3 . 2 28 2 1 Average Overweight (x) . | . . 3 4 1 1 . . 1 1 1 1 . 1 . . 1 . 1 . . 1 . . Largest Inventory Capacity 38 | 8 18 30 30 30 30 24 24 24 24 24 24 24 24 24 24 24 24 26 26 26 26 38 18 Average Capacity 23 | 7 11 29 30 30 24 24 24 24 24 24 24 24 24 24 24 24 24 25 26 26 26 14 18 Most Carried 30 | 6 15 14 13 30 29 24 24 24 24 24 24 24 24 24 17 24 24 26 26 26 26 25 18 Average Carried 21 | 5 10 13 13 20 23 23 23 23 22 24 23 23 23 20 16 23 23 24 25 25 23 12 17 Final Capacity 30 | 8 18 30 30 30 24 24 24 24 24 24 24 24 24 24 24 24 24 26 26 26 26 18 18 Final Carried 30 | 6 15 13 13 30 24 24 24 22 24 24 24 24 24 16 17 24 24 26 26 26 19 18 14 Class Distribution -------------------- 52% | Hauler-Mutant 34% | Messiah-Mutant 3% | Mutant 3% | Messiah-Assassin Dominant Class ---------------- Mutant | -10/Materials Hauler-Mutant | -9/Materials Hauler-Mutant | -9/Mines Hauler-Mutant | -8/Materials Hauler-Mutant | -7/Factory Hauler-Mutant | -7/Waste Hauler-Mutant | -7/Factory Hauler-Mutant | -7/Lower Caves Hauler-Mutant | -7/Lower Caves Hauler-Mutant | -7/Data Miner Hauler-Mutant | -6/Proximity Caves Hauler-Mutant | -6/Factory Hauler-Mutant | -6/Lower Caves Hauler-Mutant | -6/Lower Caves Hauler-Mutant | -6/Zion Messiah-Mutant | -5/Proximity Caves Messiah-Skirmisher | -5/Factory Messiah-Mutant | -5/Extension Messiah-Mutant | -5/Cetus Messiah-Mutant | -5/Archives Messiah-Mutant | -5/Hub_04(d) Messiah-Mutant | -4/Factory Messiah-Scout | -4/Armory Resources | -11 -10 -9 -9 -8 -7 -7 -7 -7 -7 -7 -6 -6 -6 -6 -6 -5 -5 -5 -5 -5 -5 -4 -4 ----------- Run | Scr Mat Mat Min Mat Fac Was Fac Low Low Dat Pro Fac Low Low Zio Pro Fac Ext Cet Arc Hub Fac Arm Matter Collected 10765 | 316 439 . . 460 692 25 858 119 277 . 347 1377 132 639 26 284 156 1317 648 465 1236 374 578 Remotely . | . . . . . . . . . . . . . . . . . . . . . . . . Salvage Created 10694 | 144 722 115 . 600 470 . 564 82 49 . 255 1630 126 948 . 326 191 1699 714 308 1028 485 238 Parts 485 | 11 45 6 . 38 22 . 21 4 4 . 12 68 6 26 . 7 6 96 34 16 22 34 7 Haulers Intercepted 8 | . 1 . . 1 . . 1 . . . . 3 . . . 1 . . . . . 1 . Recyclers Shooed 17 | . 5 . . 1 1 . 1 . . . . 4 . . . . 1 1 . . 3 . . Parts Field Recycled . | . . . . . . . . . . . . . . . . . . . . . . . . Retrieved Matter . | . . . . . . . . . . . . . . . . . . . . . . . . Parts Self-Destructed 64 | . . . . . . . . 3 7 . 9 . 6 26 . 13 . . . . . . . Prevented 5 | . . . . . . . . . 3 . 2 . . . . . . . . . . . . Kills | -11 -10 -9 -9 -8 -7 -7 -7 -7 -7 -7 -6 -6 -6 -6 -6 -5 -5 -5 -5 -5 -5 -4 -4 ------- Run | Scr Mat Mat Min Mat Fac Was Fac Low Low Dat Pro Fac Low Low Zio Pro Fac Ext Cet Arc Hub Fac Arm Combat Hostiles Destroyed 185 | . 10 2 . 10 11 . 8 9 2 . 12 22 2 19 . 8 . 20 11 3 20 8 8 Melee 1 | . . . . . . . . . . . . . . . . . . . . . 1 . . Guns 76 | . 10 2 . 7 . . 3 3 . . . 13 . 3 . 3 . 16 10 1 . 4 1 Cannons 67 | . . . . . 11 . 5 1 2 . 4 6 2 10 . 1 . 4 1 2 15 . 3 AOE 41 | . . . . 3 . . . 5 . . 8 3 . 6 . 4 . . . . 4 4 4 Classes Destroyed 19 | 2 7 1 . . 2 . 1 1 . . 2 . . . . . . 1 1 . . 1 . Worker 7 | . 2 . . . . . . . . . . . . . . . . . . . 4 1 . Builder 8 | . 1 . . 1 . . . . . . . 2 . . . . . 2 . . 2 . . Tunneler 6 | 5 . . . . . . . . . . . . . . . . . . . . 1 . . Hauler 8 | . 1 . . 1 . . 1 . . . . 3 . . . 1 . . . . . 1 . Recycler 18 | 1 3 . . 1 2 . 2 . . . . 3 . . . . 1 2 . . 3 . . Operator 9 | . 1 . . 1 . . . . . . . 1 . . . . . 1 . 4 . . 1 Watcher 10 | . 1 . . 1 . . . . . . . 2 . . . . 1 3 1 . . . 1 Swarmer 49 | . 3 . . . 4 . . 4 . . 7 8 . 4 . 4 . . 2 . 5 4 4 Saboteur 1 | . . . . . . . . . . . . . . . . . . . . . . 1 . Grunt 59 | . 7 . . 7 3 . 3 . . . 2 8 . 9 . 3 . 3 4 . 8 . 2 Brawler 1 | . . . . . . . . . . . 1 . . . . . . . . . . . . Duelist 2 | . . . . . . . . . . . . . . . . . . . 1 . 1 . . Sentry 28 | . . 2 . 3 1 . 3 . . . 1 5 . . . . . 5 . 3 2 1 2 Hunter 17 | . . . . . 2 . . . 1 . . . 2 6 . 1 . 3 1 . 1 . . Programmer 17 | . . . . . 1 . 2 . 1 . . 1 . . . . . 6 1 . 3 2 . Behemoth 3 | . . . . . . . . . . . 1 . . . . . . 2 . . . . . Cetus Guard 2 | . . . . . . . . . . . . . . . . . . . 2 . . . . Z-Courier 2 | . . . . . . . . . . . . . . . . . . 1 . . . 1 . Decomposer 1 | . . . . . . . . . . . . . 1 . . . . . . . . . . Assembled 5 | . . . . . . . . 5 . . . . . . . . . . . . . . . Surgeon 1 | . . . . . . . 1 . . . . . . . . . . . . . . . . Butcher 1 | . . . . . . . . . . . . . . . . . . 1 . . . . . Fireman 1 | . . . . . . . . . . . . . . . . . . . 1 . . . . Best Kill Streak 16 | 3 4 1 . 4 6 . 2 5 1 . 4 6 2 4 . 4 1 5 5 5 16 5 5 Combat Bots Only 14 | . 3 1 . 3 5 . 1 5 1 . 4 4 2 4 . 4 . 4 5 1 14 4 4 Max Kills in Single Turn 4 | 1 1 1 . 2 2 . 1 2 1 . 3 3 1 2 . 4 1 2 2 1 4 2 4 Gunslinging 1 | . . . . . . . . . . . . 1 . . . . . 1 . . . . . Exploded 4 | . . . . 2 . . . 2 . . 3 3 . 2 . 4 . . . . 2 2 3 Melee 1 | . . . . . . . . . . . . . . . . . . . . . 1 . . Uniques/NPCs Destroyed 1 | . . . . . . . . . . . . . . . . . . . 1 . . . . A7 (-5/Cetus) Combat | -11 -10 -9 -9 -8 -7 -7 -7 -7 -7 -7 -6 -6 -6 -6 -6 -5 -5 -5 -5 -5 -5 -4 -4 -------- Run | Scr Mat Mat Min Mat Fac Was Fac Low Low Dat Pro Fac Low Low Zio Pro Fac Ext Cet Arc Hub Fac Arm Damage Taken 22560 | . 541 480 . 1026 537 . 849 524 229 . 628 2016 380 3351 . 413 389 4604 514 396 3732 720 1231 Core 2554 | . 116 117 . 98 28 . 126 38 122 . 52 49 23 534 . 63 . 422 12 60 381 113 200 Absorbed by Shields 307 | . . . . . . . . . . . . . . . . . . 26 281 . . . . Reduced by Siege Mode 151 | . . . . . . . . . . . . . . . . . . . 5 . 146 . . Core Remaining (%) 55 | 100 53 . 70 82 . . . . . . 47 . . . . 21 . . . . 12 . . Volleys Fired 854 | 28 81 14 . 77 31 . 49 20 7 . 18 123 8 63 . 18 5 105 50 36 64 16 41 Largest 2 | 2 2 2 . 2 2 . 2 2 2 . 2 2 2 2 . 2 2 2 2 2 2 1 2 Hottest 180 | 40 40 40 . 80 88 . 110 110 92 . 99 118 130 180 . 81 81 151 88 86 114 43 120 Shots Fired 1526 | 56 162 21 . 100 61 . 93 36 14 . 25 225 16 108 . 35 10 210 97 71 117 16 53 Gun 929 | 56 162 21 . 95 . . 36 19 . . 7 168 . 23 . 17 7 161 87 54 . 14 2 Cannon 559 | . . . . . 61 . 55 13 14 . 9 56 16 76 . 17 3 49 10 17 115 . 48 Launcher 38 | . . . . 5 . . 2 4 . . 9 1 . 9 . 1 . . . . 2 2 3 Special . | . . . . . . . . . . . . . . . . . . . . . . . . Kinetic 1319 | 56 162 21 . 89 61 . 55 20 14 . 12 214 . 33 . 34 10 193 97 71 115 14 48 Thermal 165 | . . . . 6 . . 36 12 . . . 10 16 66 . . . 17 . . . . 2 Explosive 38 | . . . . 5 . . 2 4 . . 9 1 . 9 . 1 . . . . 2 2 3 Electromagnetic 4 | . . . . . . . . . . . 4 . . . . . . . . . . . . Robot Hit Streak 38 | 8 11 20 . 21 15 . 9 5 10 . 8 15 27 32 . 10 4 38 29 38 19 10 15 Robot Miss Streak 6 | 3 6 . . 3 2 . 5 3 3 . 2 4 . 2 . 2 4 2 1 1 4 1 4 Penetration Max 1 | . . . . . . . . . . . . 1 . 1 . . . 1 1 1 1 . . Secondary Targets 8 | . 1 . . . . . 1 . . . . 2 . 1 . . . 3 . . . . . Max Gunslinging Chain 1 | . 1 . . . . . 1 . . . . 1 . 1 . . . 1 . . . . . Shots Hit Robots 1101 | 35 106 20 . 63 37 . 53 20 9 . 16 161 15 82 . 27 9 166 80 60 86 20 36 Core Hits 533 | 12 45 5 . 32 20 . 23 12 3 . 22 64 5 45 . 13 3 78 43 21 47 17 23 Critical Hits 58 | . . . . . 1 . 2 1 . . . 3 . 4 . . . 6 14 5 17 2 3 Critical Kills 23 | . . . . . . . . . . . . 1 . 3 . . . 3 4 3 7 1 1 Critical Parts Destroyed 33 | . . . . . 1 . 2 1 . . . 2 . 1 . . . 3 8 2 10 1 2 Melee Attacks 68 | . . . . . . . . 2 3 . . 4 . 7 . . 22 . 2 . 6 11 11 Impact . | . . . . . . . . . . . . . . . . . . . . . . . . Slashing 68 | . . . . . . . . 2 3 . . 4 . 7 . . 22 . 2 . 6 11 11 Piercing . | . . . . . . . . . . . . . . . . . . . . . . . . Sneak Attacks 9 | . . . . . . . . . . . . . . . . . 3 . . . 1 5 . Combat Hostiles . | . . . . . . . . . . . . . . . . . . . . . . . . Follow-up Attacks . | . . . . . . . . . . . . . . . . . . . . . . . . Damage Inflicted 33243 | 293 876 224 . 1435 960 . 1431 914 184 . 1714 4295 351 3540 . 862 499 4675 2459 1494 3628 1415 1994 Guns 13759 | 293 876 224 . 1031 . . 532 156 . . 58 2841 . 394 . 277 104 3443 2166 978 . 322 64 Cannons 11990 | . . . . . 960 . 899 210 184 . 141 1190 351 1571 . 287 32 1200 265 516 2990 . 1194 Explosions 5902 | . . . . 404 . . . 548 . . 1515 264 . 1179 . 298 . . . . 457 501 736 Melee 1518 | . . . . . . . . . . . . . . 396 . . 363 . 28 . 139 592 . Ramming 74 | . . . . . . . . . . . . . . . . . . 32 . . 42 . . Kinetic 22360 | 293 876 224 . 954 960 . 899 275 184 . 182 3736 . 557 . 564 136 4089 2431 1494 2990 322 1194 Thermal 3372 | . . . . 77 . . 532 91 . . . 295 351 1408 . . . 554 . . . . 64 Explosive 5902 | . . . . 404 . . . 548 . . 1515 264 . 1179 . 298 . . . . 457 501 736 Electromagnetic 17 | . . . . . . . . . . . 17 . . . . . . . . . . . . Impact . | . . . . . . . . . . . . . . . . . . . . . . . . Slashing 1518 | . . . . . . . . . . . . . . 396 . . 363 . 28 . 139 592 . Piercing . | . . . . . . . . . . . . . . . . . . . . . . . . Highest Corruption 15 | . . . . . 3 3 6 6 6 6 6 4 4 4 4 . 3 13 15 15 12 . . Average Corruption 5 | . . . . . 2 3 3 4 6 6 6 4 4 4 4 . 1 8 14 10 2 . . Corruption Purged 21 | . . . . . . . . 4 . . . . . . . . . 2 . 15 . . . Effects 372 | . . . . . 2 3 34 13 18 3 27 26 15 39 1 . 2 80 53 51 5 . . Message Errors 72 | . . . . . . . 6 2 4 1 8 8 3 14 . . 1 14 3 7 1 . . Matter Fused 65 | . . . . . . 2 7 2 5 . 8 3 3 8 . . . 9 9 9 . . . Heat Flow Errors 49 | . . . . . . . 6 1 . 2 4 5 3 7 . . . 7 2 11 1 . . Energy Discharges 41 | . . . . . . 1 7 3 3 . 3 . 2 4 1 . 1 9 3 3 1 . . Parts Rejected 4 | . . . . . . . . . . . 1 . . . . . . 1 . 1 1 . . Data Loss (minor) 41 | . . . . . . . 4 4 4 . 2 4 1 4 . . . 5 5 8 . . . Data Loss (major) 7 | . . . . . . . . . 1 . . . . . . . . 4 1 1 . . . Misfires 3 | . . . . . . . . . . . . . . . . . . 2 . 1 . . . Alerts 2 | . . . . . . . . . . . . . . . . . . 2 . . . . . Misdirections 12 | . . . . . . . . . . . . . . . . . . 4 7 1 . . . Targeting Errors 67 | . . . . . 1 . 4 1 1 . 1 5 3 2 . . . 21 20 7 1 . . Weapon Failures 9 | . . . . . 1 . . . . . . 1 . . . . . 2 3 2 . . . Overload Shots . | . . . . . . . . . . . . . . . . . . . . . . . . Overflow Damage 944 | . . . . 14 22 . 12 52 . . 160 39 12 156 . . 26 65 . . 157 133 96 Projectiles 373 | . . . . . 22 . 12 11 . . 21 39 12 29 . . . 65 . . 157 . 5 Explosions 377 | . . . . 14 . . . 41 . . 139 . . 55 . . . . . . . 37 91 Melee 194 | . . . . . . . . . . . . . . 72 . . 26 . . . . 96 . Knockbacks 69 | . . . . . 7 . 10 2 1 . . 6 . 3 . 3 . 5 1 1 25 . 5 Impact 1 | . . . . . . . . . . . . . . . . . . . . . 1 . . Kinetic 65 | . . . . . 7 . 10 2 1 . . 6 . 3 . 3 . 5 1 1 22 . 4 Secondary 3 | . . . . . . . . . . . . . . . . . . . . . 2 . 1 Self-Inflicted Damage 268 | . . . . . . . . 12 . . 12 . . 8 . . . . . . 195 . 41 Shots 7 | . . . . . . . . 1 . . 1 . . 1 . . . . . . 3 . 1 Rammed . | . . . . . . . . . . . . . . . . . . . . . . . . Targets Rammed 4 | . . . . . . . . . . . . . . . . . . 1 . . 3 . . Kicked 3 | . . . . . . . . . . . . . . . . . . 1 . . 2 . . Crushed 1 | . . . . . . . . . . . . . . . . . . . . . 1 . . Highest Temperature 390 | . 18 6 . 55 99 . 270 290 148 154 249 280 251 265 . 144 . 390 196 239 312 . 162 Average Temperature 67 | . 9 5 . 19 39 . 80 105 70 77 84 83 113 71 . 41 . 72 35 70 62 . 53 Received Heat Transfer 3986 | . 255 213 . 477 48 . 261 40 12 . 201 684 . 486 . 27 36 345 73 36 684 45 63 Effects 13 | . . . . . . . 1 5 . . 1 4 . . . . . 1 . . 1 . . Shutdowns 1 | . . . . . . . . . . . . . . . . . . 1 . . . . . Energy Bleed 5 | . . . . . . . 1 2 . . 1 1 . . . . . . . . . . . Interference 6 | . . . . . . . . 3 . . . 3 . . . . . . . . . . . Short Circuit 1 | . . . . . . . . . . . . . . . . . . . . . 1 . . Siege Activations 2 | . . . . . . . . . . . . . . . . . . . 1 . 1 . . Total Turns 72 | . . . . . . . . . . . . . . . . . . . 6 . 66 . . Longest Duration 66 | . . . . . . . . . . . . . . . . . . . 6 . 66 . . Robots Corrupted . | . . . . . . . . . . . . . . . . . . . . . . . . Combat Hostiles . | . . . . . . . . . . . . . . . . . . . . . . . . Parts Fried . | . . . . . . . . . . . . . . . . . . . . . . . . Impact Corruptions 1 | . . . . . . . . . . . . . . . . . . . . . 1 . . Robots Melted . | . . . . . . . . . . . . . . . . . . . . . . . . Combat Hostiles . | . . . . . . . . . . . . . . . . . . . . . . . . Parts Melted 9 | . . . . . . . 4 . . . . . 3 1 . . . 1 . . . . . Heat Transferred 4139 | . . . . 148 . . 925 185 . . . 273 481 1461 . . . 592 . . . . 74 Parts Sabotaged 3 | . . . . . . . . . . . . . . . . . . . . . . . 3 Parts Stolen . | . . . . . . . . . . . . . . . . . . . . . . . . Parts Stripped . | . . . . . . . . . . . . . . . . . . . . . . . . Power Chain Reactions . | . . . . . . . . . . . . . . . . . . . . . . . . Missiles Intercepted . | . . . . . . . . . . . . . . . . . . . . . . . . Alert | -11 -10 -9 -9 -8 -7 -7 -7 -7 -7 -7 -6 -6 -6 -6 -6 -5 -5 -5 -5 -5 -5 -4 -4 ------- Run | Scr Mat Mat Min Mat Fac Was Fac Low Low Dat Pro Fac Low Low Zio Pro Fac Ext Cet Arc Hub Fac Arm Peak Influence 1757 | 30 328 80 31 244 216 7 1757 . . . . 814 . . . . 127 201 564 376 934 894 1046 Average Influence 274 | 12 100 33 31 161 85 7 889 . . . . 252 . . . . 27 70 246 156 252 587 797 Maximum Alert Level 5 | . 1 . . 1 1 . 5 . . . . 3 . . . . . 1 2 1 3 3 3 Low Security (%) 63 | . . . . . . . . . . . . . . . . . . . . . . . . Level 1 15 | . . . . . . . . . . . . . . . . . . . . . . . . Level 2 7 | . . . . . . . . . . . . . . . . . . . . . . . . Level 3 8 | . . . . . . . . . . . . . . . . . . . . . . . . Level 4 2 | . . . . . . . . . . . . . . . . . . . . . . . . Level 5 2 | . . . . . . . . . . . . . . . . . . . . . . . . High Security . | . . . . . . . . . . . . . . . . . . . . . . . . Max Security . | . . . . . . . . . . . . . . . . . . . . . . . . Squads Dispatched 41 | . 4 2 . . 2 . 15 . . . . 6 . . . . 2 1 . . 5 2 2 Investigation 11 | . 1 . . . 1 . 6 . . . . 1 . . . . . . . . 2 . . Extermination 8 | . . . . . 1 . 1 . . . . 2 . . . . 1 . . . 2 1 . Reinforcement 17 | . 3 2 . . . . 5 . . . . 3 . . . . 1 1 . . 1 . 1 Assault 4 | . . . . . . . 2 . . . . . . . . . . . . . . 1 1 Garrison 1 | . . . . . . . 1 . . . . . . . . . . . . . . . . Intercept . | . . . . . . . . . . . . . . . . . . . . . . . . Construction Impeded 3 | . . . . . . . 2 . . . . . . . . . . . . . 1 . . Haulers Reinforced 1 | . . . . . . . . . . . . 1 . . . . . . . . . . . Stealth | -11 -10 -9 -9 -8 -7 -7 -7 -7 -7 -7 -6 -6 -6 -6 -6 -5 -5 -5 -5 -5 -5 -4 -4 --------- Run | Scr Mat Mat Min Mat Fac Was Fac Low Low Dat Pro Fac Low Low Zio Pro Fac Ext Cet Arc Hub Fac Arm Distress Signals 20 | . 1 1 . 3 . . 1 . . . . 1 . . . . 1 5 2 . 1 2 2 Communications Jammed 1 | . . . . . . . . . . . . 1 . . . . . . . . . . . Distress Signals 1 | . . . . . . . . . . . . 1 . . . . . . . . . . . Times Spotted 438 | . 25 9 . 22 10 . 39 13 3 . 21 40 2 27 . 14 15 31 29 19 57 26 36 Peak Tracking Total 14 | . 5 7 . 5 5 . 7 7 1 . 5 5 2 4 . 5 4 6 5 1 14 13 13 Tactical Retreats 45 | . . . . 2 . . 3 3 1 . 6 6 . 7 . 1 . 2 . . 8 4 2 Traps | -11 -10 -9 -9 -8 -7 -7 -7 -7 -7 -7 -6 -6 -6 -6 -6 -5 -5 -5 -5 -5 -5 -4 -4 ------- Run | Scr Mat Mat Min Mat Fac Was Fac Low Low Dat Pro Fac Low Low Zio Pro Fac Ext Cet Arc Hub Fac Arm Traps Triggered 12 | . 1 . . . 1 . 3 . . . . 2 . . . . 1 2 . . 1 1 . Indirectly 1 | . . . . . . . . . . . . . . . . . . . . . 1 . . Trap Hack Attempts . | . . . . . . . . . . . . . . . . . . . . . . . . Triggered . | . . . . . . . . . . . . . . . . . . . . . . . . Disarmed . | . . . . . . . . . . . . . . . . . . . . . . . . Reprogrammed . | . . . . . . . . . . . . . . . . . . . . . . . . Reused . | . . . . . . . . . . . . . . . . . . . . . . . . Traps Extracted . | . . . . . . . . . . . . . . . . . . . . . . . . Installed . | . . . . . . . . . . . . . . . . . . . . . . . . Triggered 2 | . . . . . . . . . 1 . 1 . . . . . . . . . . . . Machines | -11 -10 -9 -9 -8 -7 -7 -7 -7 -7 -7 -6 -6 -6 -6 -6 -5 -5 -5 -5 -5 -5 -4 -4 ---------- Run | Scr Mat Mat Min Mat Fac Was Fac Low Low Dat Pro Fac Low Low Zio Pro Fac Ext Cet Arc Hub Fac Arm Machines Disabled 41 | . . . . . . . 6 . . . . 8 . . . . . 1 1 3 17 1 4 Max in Single Turn 7 | . . . . . . . 1 . . . . 5 . . . . . 1 1 1 7 1 1 Garrison Access 2 | . . . . . . . 1 . . . . . . . . . 1 . . . . . . Network Hub 2 | . . . . . . . . . . . . . . . . . . . . . 2 . . Machines Sabotaged . | . . . . . . . . . . . . . . . . . . . . . . . . Garrisons Compromised 1 | . . . . . . . . . . . . 1 . . . . . . . . . . . Overloaded Fab Kills . | . . . . . . . . . . . . . . . . . . . . . . . . Fab Network Shutdowns 3 | . . . . . . . . . . . . 1 . . . . . . . . . 1 1 Hacking | -11 -10 -9 -9 -8 -7 -7 -7 -7 -7 -7 -6 -6 -6 -6 -6 -5 -5 -5 -5 -5 -5 -4 -4 --------- Run | Scr Mat Mat Min Mat Fac Was Fac Low Low Dat Pro Fac Low Low Zio Pro Fac Ext Cet Arc Hub Fac Arm Machines Accessed 42 | . 5 . . 4 2 . 8 1 1 4 . 7 . . . 1 3 . . 1 . 2 3 Terminals 22 | . 5 . . 4 2 . 6 . . . . 4 . . . 1 . . . . . . . Fabricators 7 | . . . . . . . 1 . . . . 2 . . . . 1 . . . . 1 2 Repair Stations 2 | . . . . . . . . . . . . 1 . . . . 1 . . . . . . Recycling Units 1 | . . . . . . . . . . . . . . . . . . . . . . . 1 Scanalyzers . | . . . . . . . . . . . . . . . . . . . . . . . . Garrison Access 3 | . . . . . . . 1 . . . . . . . . . 1 . . . . 1 . Total Hacks 149 | . 21 . . 18 6 . 22 1 1 23 . 18 . . . 6 7 . . 4 . 11 11 Successful 98 | . 11 . . 11 4 . 8 1 1 23 . 9 . . . 2 4 . . 4 . 9 11 Failed 51 | . 10 . . 7 2 . 14 . . . . 9 . . . 4 3 . . . . 2 . Catastrophic 9 | . 1 . . 1 1 . 3 . . . . . . . . 2 1 . . . . . . Database Lockouts . | . . . . . . . . . . . . . . . . . . . . . . . . Manual 116 | . 12 . . 10 2 . 9 . . . . 3 . . . 5 9 10 9 . 12 23 12 Terminals 79 | . 21 . . 18 6 . 17 . . . . 11 . . . 6 . . . . . . . Fabricators 29 | . . . . . . . 1 . . . . 5 . . . . 3 . . . . 10 10 Repair Stations 4 | . . . . . . . . . . . . 2 . . . . 2 . . . . . . Recycling Units 1 | . . . . . . . . . . . . . . . . . . . . . . . 1 Scanalyzers . | . . . . . . . . . . . . . . . . . . . . . . . . Garrison Access 7 | . . . . . . . 4 . . . . . . . . . 2 . . . . 1 . Terminal Hacks 62 | . 9 . . 9 2 . 7 1 1 23 . 4 . . . 2 . . . 4 . . . Record 16 | . . . . . . . . . . 11 . . . . . 1 . . . 4 . . . Part Schematic 9 | . . . . . . . . . . 6 . 2 . . . 1 . . . . . . . Robot Schematic 5 | . 1 . . 1 . . . . . 3 . . . . . . . . . . . . . Robot Analysis 5 | . 3 . . 2 . . . . . . . . . . . . . . . . . . . Prototype ID Bank 5 | . . . . . 1 . . . . 3 . 1 . . . . . . . . . . . Open Door 2 | . . . . . . . . 1 1 . . . . . . . . . . . . . . Branch Access Points 2 | . . . . 1 . . 1 . . . . . . . . . . . . . . . . Terminal Index 2 | . . . . 1 . . 1 . . . . . . . . . . . . . . . . Unreport Threat 3 | . 1 . . . 1 . 1 . . . . . . . . . . . . . . . . Locate Traps 4 | . . . . 2 . . 1 . . . . 1 . . . . . . . . . . . Recall Reinforcements 3 | . 2 . . . . . 1 . . . . . . . . . . . . . . . . Hauler Manifests 2 | . 1 . . . . . 1 . . . . . . . . . . . . . . . . Registered Components 1 | . . . . 1 . . . . . . . . . . . . . . . . . . . Zone Layout 3 | . 1 . . 1 . . 1 . . . . . . . . . . . . . . . . Fabricator Hacks 16 | . . . . . . . . . . . . 4 . . . . 2 . . . . 4 6 Network Status 4 | . . . . . . . . . . . . . . . . . . . . . . 1 3 Load Schematic 5 | . . . . . . . . . . . . 2 . . . . 1 . . . . 1 1 Build 7 | . . . . . . . . . . . . 2 . . . . 1 . . . . 2 2 Repair Station Hacks 1 | . . . . . . . . . . . . . . . . . 1 . . . . . . Scan Component 1 | . . . . . . . . . . . . . . . . . 1 . . . . . . Recycling Unit Hacks 1 | . . . . . . . . . . . . . . . . . . . . . . . 1 Retrieve Components 1 | . . . . . . . . . . . . . . . . . . . . . . . 1 Scanalyzer . | . . . . . . . . . . . . . . . . . . . . . . . . Garrison Access Hacks 1 | . . . . . . . . . . . . . . . . . 1 . . . . . . Seal Access 1 | . . . . . . . . . . . . . . . . . 1 . . . . . . Unauthorized Hacks 45 | . 8 . . 5 4 . 4 . . . . 4 . . . . 1 . . . . 11 8 Terminals 7 | . 2 . . 2 2 . . . . . . 1 . . . . . . . . . . . Track 3 | . 1 . . 1 1 . . . . . . . . . . . . . . . . . . Botnet 4 | . 1 . . 1 1 . . . . . . 1 . . . . . . . . . . . Fabricators 8 | . . . . . . . . . . . . . . . . . . . . . . 4 4 Report 2 | . . . . . . . . . . . . . . . . . . . . . . 1 1 Prioritize 2 | . . . . . . . . . . . . . . . . . . . . . . 1 1 Siphon 3 | . . . . . . . . . . . . . . . . . . . . . . 1 2 Haulers 1 | . . . . . . . . . . . . . . . . . . . . . . 1 . Repair Stations . | . . . . . . . . . . . . . . . . . . . . . . . . Recycling Units . | . . . . . . . . . . . . . . . . . . . . . . . . Scanalyzers . | . . . . . . . . . . . . . . . . . . . . . . . . Garrison Access 2 | . . . . . . . 1 . . . . . . . . . . . . . . 1 . Reprogram 1 | . . . . . . . . . . . . . . . . . . . . . . 1 . Jam 1 | . . . . . . . 1 . . . . . . . . . . . . . . . . Data Cores Recovered 4 | . 1 . . 1 . . . . . . . . . . . . . . . . . 1 1 Used 1 | . 1 . . . . . . . . . . . . . . . . . . . . . . Hacking Detections 29 | . 5 . . 4 2 . 7 . . . . 7 . . . 1 2 . . . . . 1 Full Trace Events 5 | . . . . . 1 . 3 . . . . 1 . . . . . . . . . . . Feedback Events 1 | . . . . . . . 1 . . . . . . . . . . . . . . . . Hackware Fried 1 | . . . . . . . 1 . . . . . . . . . . . . . . . . Feedback Blocked . | . . . . . . . . . . . . . . . . . . . . . . . . Robot Schematics Acquired 8 | . 1 . . 1 . . . . . 3 . . . . . . . 3 . . . . . Robots Built 3 | . . . . . . . . . . . . 3 . . . . . . . . . . . Matter 285 | . . . . . . . . . . . . 285 . . . . . . . . . . . Time 76 | . . . . . . . . . . . . 76 . . . . . . . . . . . Total Robot Build Rating 15 | . . . . . . . . . . . . 15 . . . . . . . . . . . Part Schematics Acquired 43 | . . . . . . . . . . 6 . 2 . . . 1 . . 10 . 14 10 . Parts Built 7 | . . . . . . . . . . . . 1 . . . . 1 . . . . 2 3 Matter 1372 | . . . . . . . . . . . . 285 . . . . 190 . . . . 476 421 Time 550 | . . . . . . . . . . . . 152 . . . . 95 . . . . 126 177 Total Part Build Rating 45 | . . . . . . . . . . . . 5 . . . . 5 . . . . 12 23 Parts Repaired . | . . . . . . . . . . . . . . . . . . . . . . . . Time . | . . . . . . . . . . . . . . . . . . . . . . . . Parts Recycled . | . . . . . . . . . . . . . . . . . . . . . . . . Recycled Matter . | . . . . . . . . . . . . . . . . . . . . . . . . Retrieved Matter . | . . . . . . . . . . . . . . . . . . . . . . . . Retrieved Components 1 | . . . . . . . . . . . . . . . . . . . . . . . 1 Parts Scanalyzed . | . . . . . . . . . . . . . . . . . . . . . . . . Part Schematics Acquired . | . . . . . . . . . . . . . . . . . . . . . . . . Parts Damaged . | . . . . . . . . . . . . . . . . . . . . . . . . Bothacking | -11 -10 -9 -9 -8 -7 -7 -7 -7 -7 -7 -6 -6 -6 -6 -6 -5 -5 -5 -5 -5 -5 -4 -4 ------------ Run | Scr Mat Mat Min Mat Fac Was Fac Low Low Dat Pro Fac Low Low Zio Pro Fac Ext Cet Arc Hub Fac Arm Used RIF Installer . | . . . . . . . . . . . . . . . . . . . . . . . . Robots Hacked . | . . . . . . . . . . . . . . . . . . . . . . . . Non-combat . | . . . . . . . . . . . . . . . . . . . . . . . . Combat . | . . . . . . . . . . . . . . . . . . . . . . . . Robot Hacks Applied . | . . . . . . . . . . . . . . . . . . . . . . . . Relay Couplers Released 3 | . . . . . . . 3 . . . . . . . . . . . . . . . . Programmers 3 | . . . . . . . 3 . . . . . . . . . . . . . . . . Robots Rewired 11 | . . . . . . . . . . . . . . . . . . 7 . . . . 4 Allies Hacked 1 | . . . . . . . 1 . . . . . . . . . . . . . . . . Hacks Repelled . | . . . . . . . . . . . . . . . . . . . . . . . . Allies | -11 -10 -9 -9 -8 -7 -7 -7 -7 -7 -7 -6 -6 -6 -6 -6 -5 -5 -5 -5 -5 -5 -4 -4 -------- Run | Scr Mat Mat Min Mat Fac Was Fac Low Low Dat Pro Fac Low Low Zio Pro Fac Ext Cet Arc Hub Fac Arm Total Allies 84 | . . . . . . 20 . . . . 1 15 . . 4 . 3 10 6 . 10 5 10 Largest Group 20 | . . . . . . 20 15 . . . 1 10 . . 4 4 3 8 8 2 7 2 5 Highest-Rated Group 579 | . . . . . . 579 430 . . . 94 254 . . 158 158 126 357 420 170 322 206 402 Highest-Rated Ally 156 | . . . . . . 35 35 . . . 94 31 . . 41 41 42 156 156 85 70 103 96 Zionite Dispatches 13 | . . . . . . . . . . . . . . . . . 1 1 3 . 3 3 2 Heavy 2 | . . . . . . . . . . . . . . . . . . . 1 . . 1 . Light 3 | . . . . . . . . . . . . . . . . . . . . . 2 . 1 Fire 2 | . . . . . . . . . . . . . . . . . . . 1 . 1 . . Hacker 3 | . . . . . . . . . . . . . . . . . 1 . . . . 1 1 Resource Resupply 1 | . . . . . . . . . . . . . . . . . . 1 . . . . . Infowar Resupply 1 | . . . . . . . . . . . . . . . . . . . 1 . . . . Hover Resupply 1 | . . . . . . . . . . . . . . . . . . . . . . 1 . Total Orders 4 | . . . . . . . . . . . . . . . . . . 2 1 . . 1 . FOLLOW 1 | . . . . . . . . . . . . . . . . . . 1 . . . . . DROP 3 | . . . . . . . . . . . . . . . . . . 1 1 . . 1 . Ally Attacks 518 | . . . . . . . 156 . . . 14 75 . . . 24 20 14 93 6 67 10 39 Total Damage 15736 | . . . . . . . 4755 . . . 355 1106 . . . 1307 309 422 3803 479 1470 516 1214 Kills 108 | . . . . . . . 44 . . . 1 8 . . . 5 6 2 18 1 13 1 9 Allies Corrupted 2 | . . . . . . . . . . . . 2 . . . . . . . . . . . Allies Melted . | . . . . . . . . . . . . . . . . . . . . . . . . Intel | -11 -10 -9 -9 -8 -7 -7 -7 -7 -7 -7 -6 -6 -6 -6 -6 -5 -5 -5 -5 -5 -5 -4 -4 ------- Run | Scr Mat Mat Min Mat Fac Was Fac Low Low Dat Pro Fac Low Low Zio Pro Fac Ext Cet Arc Hub Fac Arm Robot Analysis Total 5 | . 3 . . 2 . . . . . . . . . . . . . . . . . . . Derelict Logs Recovered 10 | . . . . . . . . 1 1 . 2 . 1 1 1 3 . . . . . . . Drone Launches 3 | . . . . . . . . . . . . . . . . . . 3 . . . . . Drone Recoveries . | . . . . . . . . . . . . . . . . . . . . . . . . Zionite Intel Received 7 | . . . . . . . . . . . . . . . . . 1 2 1 . 1 2 . Component Stockpiles 1 | . . . . . . . . . . . . . . . . . . . . . . 1 . Component Schematics 1 | . . . . . . . . . . . . . . . . . . . . . 1 . . Prototype Schematics 2 | . . . . . . . . . . . . . . . . . . . 1 . . 1 . Unaware Schematics 1 | . . . . . . . . . . . . . . . . . . 1 . . . . . Trap Installations 2 | . . . . . . . . . . . . . . . . . 1 1 . . . . . Exploration | -11 -10 -9 -9 -8 -7 -7 -7 -7 -7 -7 -6 -6 -6 -6 -6 -5 -5 -5 -5 -5 -5 -4 -4 ------------- Run | Scr Mat Mat Min Mat Fac Was Fac Low Low Dat Pro Fac Low Low Zio Pro Fac Ext Cet Arc Hub Fac Arm Turns Passed 20200 | 173 873 146 34 809 468 146 1320 572 696 150 1093 1954 492 1698 1486 482 1079 2025 654 1409 1011 828 602 Spaces Moved 11048 | 98 597 86 19 323 190 85 706 275 415 92 582 1041 302 956 966 259 698 894 261 137 425 892 749 Core 151 | 4 . . . . . . . . . . . . . . . . . . . . 1 146 . Treads 1483 | . . . . 323 190 85 98 . . . . . . . . . . 414 261 46 66 . . Legs 7123 | . . . . . . . 608 275 415 92 582 1041 302 956 966 259 698 480 . 91 358 . . Wheels 796 | 94 597 86 19 . . . . . . . . . . . . . . . . . . . . Hover 1495 | . . . . . . . . . . . . . . . . . . . . . . 746 749 Flight . | . . . . . . . . . . . . . . . . . . . . . . . . Fastest Speed 27 | 50 90 120 140 180 180 160 153 153 155 160 160 120 150 120 122 152 122 152 160 150 150 32 27 Average Speed 136 | 87 97 127 140 180 180 165 155 154 157 160 161 146 150 146 151 152 127 173 160 153 172 69 39 Slowest Speed 1450 | 90 110 140 140 180 180 180 185 155 160 160 165 167 150 152 152 152 152 220 160 180 1450 150 92 Overloaded Moves 56 | . . . . . . . . . . . . . . . . . . . . . . 9 47 Propulsion Burnouts . | . . . . . . . . . . . . . . . . . . . . . . . . Robots Hopped . | . . . . . . . . . . . . . . . . . . . . . . . . Cave-ins Triggered . | . . . . . . . . . . . . . . . . . . . . . . . . Exploration Rate (%) 49 | 4 93 18 7 30 5 77 24 52 62 68 79 31 51 83 90 49 15 88 68 83 39 22 41 Regions Visited 23 Branch Regions 14 Pre-discovered Areas 3 | . . . . . . . . . . 1 . . . . 1 1 . . . . . . . Known Exits Taken 9 | . . . . . . . 1 1 . . . 1 . . . . 1 1 1 1 1 1 . Unknown Exits Taken 12 | 1 1 1 1 1 . . . . 1 1 1 . 1 1 1 1 . . . . . . . Scrap Searched 15 | . . . . . . . . 2 4 . 1 . 2 2 2 2 . . . . . . . Spaces Dug 66 | . . . . . . . 14 2 3 . 16 4 . 2 . . 7 . . . 4 5 9 Terrain Destroyed 860 | . . . . 29 2 . 20 47 5 . 75 13 . 133 . 20 8 15 13 8 367 19 86 Melee 33 | . . . . . . . . 2 3 . . 4 . 2 . . 7 . . . 3 5 7 Projectile 114 | . . . . . 2 . 7 . 2 . 3 1 . 13 . 7 1 15 13 8 29 3 10 AOE 713 | . . . . 29 . . 13 45 . . 72 8 . 118 . 13 . . . . 335 11 69 Actions | -11 -10 -9 -9 -8 -7 -7 -7 -7 -7 -7 -6 -6 -6 -6 -6 -5 -5 -5 -5 -5 -5 -4 -4 --------- Run | Scr Mat Mat Min Mat Fac Was Fac Low Low Dat Pro Fac Low Low Zio Pro Fac Ext Cet Arc Hub Fac Arm Total 14741 | 137 755 103 26 458 260 92 845 379 445 95 709 1274 325 1125 993 311 856 1177 426 1281 602 1074 993 Wait 1800 | . 52 2 8 . 12 . 18 61 1 . 91 32 . 49 23 9 109 10 63 1059 50 49 102 Move 11026 | 97 596 85 18 322 190 84 705 274 414 91 581 1040 301 955 965 258 697 893 260 136 424 891 749 Hop . | . . . . . . . . . . . . . . . . . . . . . . . . Pick Up 248 | 6 12 . . 24 10 2 20 4 6 . 3 20 3 10 1 8 6 32 13 8 8 38 14 Fast Attach 121 | 6 3 . . 8 1 1 10 1 1 2 1 6 2 1 2 3 . 15 8 11 7 19 13 Attach 112 | . 1 2 . 7 2 . 10 4 1 . 2 7 2 17 . . 3 16 1 7 12 10 8 Detach 15 | . . . . 1 . . . . . . . . . . . 3 . 3 1 1 4 . 2 Swap 170 | . 4 . . 7 2 1 7 9 7 . 12 20 4 21 . 8 9 22 6 6 12 4 9 Drop 235 | . 6 . . 12 12 4 26 4 5 2 1 22 5 2 2 4 5 26 22 17 12 23 23 Fire 854 | 28 81 14 . 77 31 . 49 20 7 . 18 123 8 63 . 18 5 105 50 36 64 16 41 Melee 68 | . . . . . . . . 2 3 . . 4 . 7 . . 22 . 2 . 6 11 11 Ram . | . . . . . . . . . . . . . . . . . . . . . . . . Kick 3 | . . . . . . . . . . . . . . . . . . 1 . . 2 . . Crush 1 | . . . . . . . . . . . . . . . . . . . . . 1 . . Escape Stasis 22 | . . . . . . . . . . . . . . . . . . 9 . . . 13 . Rewire 65 | . . . . . . . . . . . . . . . . . . 44 . . . . 21 Trap . | . . . . . . . . . . . . . . . . . . . . . . . . Miscellaneous 1 | . . . . . . . . . . . . . . . . . . 1 . . . . . Route ------- -11/Scrapyard -10/Materials (discovered 4 exits: [*Mat x3] / [*Min]) -9/Materials -9/Mines -8/Materials -7/Factory -7/Waste -7/Factory (discovered 2 exits: *Low x2) -7/Lower Caves -7/Lower Caves -7/Data Miner -6/Proximity Caves -6/Factory (discovered 2 exits: *Fac / *Low) -6/Lower Caves -6/Lower Caves (discovered 2 exits: *Fac / [*Zio]) -6/Zion -5/Proximity Caves -5/Factory (discovered 3 exits: Upp x2 / *Ext) -5/Extension (discovered 2 exits: *Fac / *Cet) -5/Cetus (discovered 2 exits: *Fac / *Arc) -5/Archives (discovered 3 exits: *Fac / *Hub x2) -5/Hub_04(d) (discovered 2 exits: *Fac x2) -4/Factory -4/Armory History --------- Turn | Location | Event 23 | -11/Scrapyard | Discovered new exit (range 15) 174 | -11/Scrapyard | Entered Materials 307 | -10/Materials | Build established: Mutant 350 | -10/Materials | Discovered new exit (range 12) 374 | -10/Materials | Discovered new exit (range 14) 663 | -10/Materials | Discovered new exit (range 10) 847 | -10/Materials | Discovered new exit (range 12) 1047 | -10/Materials | Entered another Materials area 1047 | -9/Materials | Evolved 2 slots: Utility x2 1180 | -9/Materials | Lost 4 parts (1p1n2w) 1185 | -9/Materials | Discovered new exit (range 6) 1193 | -9/Materials | Entered Mines 1221 | -9/Mines | Discovered new exit (range 4) 1227 | -9/Mines | Entered Materials 1227 | -8/Materials | Evolved 2 slots: Propulsion x1, Utility x1 1346 | -8/Materials | Build established: Hauler-Mutant 2009 | -8/Materials | Discovered new exit (range 16) 2036 | -8/Materials | Entered Factory 2036 | -7/Factory | Evolved 2 slots: Propulsion x1, Utility x1 2504 | -7/Factory | Sucked down chute 2504 | -7/Factory | Entered Waste 2505 | -7/Waste | Joined by Warlord forces that had cleared the area 2627 | -7/Waste | Discovered new exit (range 13) 2648 | -7/Waste | Found Imp. Powered Armor 2650 | -7/Waste | Entered Factory 2650 | -7/Factory | Accompanied by 15 allies 3190 | -7/Factory | Garrison activated, responded to threat 3450 | -7/Factory | First assault squad dispatched 3466 | -7/Factory | Hacking Suite fried by hacking feedback 3532 | -7/Factory | Identified exit to Lower Caves 3970 | -7/Factory | Entered Lower Caves 4000 | -7/Lower Caves | Identified exit to Lower Caves 4386 | -7/Lower Caves | Spotted B-75 Beast 4542 | -7/Lower Caves | Entered another Lower Caves area 4582 | -7/Lower Caves | Learned 4 Factory zone layouts 4650 | -7/Lower Caves | Spotted B-75 Beast 5181 | -7/Lower Caves | Discovered new exit (range 9) 5238 | -7/Lower Caves | Entered Data Miner 5239 | -7/Data Miner | Discovered new exit (range 6) 5270 | -7/Data Miner | Met Data Miner 5300 | -7/Data Miner | Learned location of Section 7 (-2) 5300 | -7/Data Miner | Acquired the access code to Warlord's prototype stash 5326 | -7/Data Miner | Received God Mode back door access code from Data Miner 5388 | -7/Data Miner | Entered Proximity Caves 5507 | -6/Proximity Caves | Spotted B-75 Beast 5510 | -6/Proximity Caves | Escorted by Enhanced Grunt 5525 | -6/Proximity Caves | Destroyed B-75 Beast 6011 | -6/Proximity Caves | Learned Factory terminal intel 6208 | -6/Proximity Caves | Attracted the attention of an 0b10 checkpoint 6216 | -6/Proximity Caves | Core integrity fell below 50% 6454 | -6/Proximity Caves | Discovered new exit (range 3) 6481 | -6/Proximity Caves | Entered Factory 6481 | -6/Factory | Evolved 2 slots: Propulsion x1, Utility x1 6482 | -6/Factory | Identified exit to Lower Caves 6484 | -6/Factory | Loaded intel: 20 terminal locations 7201 | -6/Factory | Fabricated Lgt. Regenerative Plating (x1) 7773 | -6/Factory | Discovered new exit (range 17) 7861 | -6/Factory | Fabricated G-50 Soldier? 7948 | -6/Factory | Incoming investigation squad redirected 8290 | -6/Factory | Local fabrication network quarantined 8435 | -6/Factory | Entered Lower Caves 8696 | -6/Lower Caves | Learned location of 1 exit from Factory 8842 | -6/Lower Caves | Discovered new exit (range 9) 8927 | -6/Lower Caves | Entered another Lower Caves area 9059 | -6/Lower Caves | Discovered new exit (range 7) 9547 | -6/Lower Caves | Lost 4 parts (2n2w) 9816 | -6/Lower Caves | Spotted B-75 Beast 9837 | -6/Lower Caves | Core integrity fell below 50% 10204 | -6/Lower Caves | Lost 4 parts (3n1w) 10447 | -6/Lower Caves | Lost 4 parts (1p1n1u1w) 10603 | -6/Lower Caves | Discovered new exit (range 15) 10625 | -6/Lower Caves | Entered Zion 10701 | -6/Zion | System corruption cleaned by Quarantine Array 10801 | -6/Zion | Discovered new exit (range 7) 11069 | -6/Zion | Learned location of Armory (-4) 11294 | -6/Zion | Learned 8 Factory zone layouts 11761 | -6/Zion | Imprinted 11764 | -6/Zion | Declared Zion's savior 12060 | -6/Zion | Build established: Messiah-Mutant 12111 | -6/Zion | Entered Proximity Caves 12111 | -5/Proximity Caves | Accompanied by 4 allies 12164 | -5/Proximity Caves | Found Imp. Powered Armor 12540 | -5/Proximity Caves | Discovered new exit (range 8) 12546 | -5/Proximity Caves | Learned location of 1 exit from Proximity Caves 12547 | -5/Proximity Caves | Learned location of Warlord (-5) 12578 | -5/Proximity Caves | Learned Factory garrison access intel 12593 | -5/Proximity Caves | Entered Factory 12593 | -5/Factory | Evolved 2 slots: Utility x2 12594 | -5/Factory | Identified exit to Upper Caves 12597 | -5/Factory | Loaded intel: 4 garrison access locations 12901 | -5/Factory | Build established: Messiah-Skirmisher 13091 | -5/Factory | Discovered new exit (range 6) 13092 | -5/Factory | Retrieved Zion intel report: Trap Installations 13093 | -5/Factory | Zion Hacker squad teleported in 13254 | -5/Factory | Fabricated Tactical Coordination Suite (x1) 13429 | -5/Factory | Spotted B-75 Beast 13490 | -5/Factory | Identified exit to Extension 13672 | -5/Factory | Entered Extension 13741 | -5/Extension | Rescued a captive Derelict 13741 | -5/Extension | Retrieved Zion intel report: Trap Installations 13894 | -5/Extension | Retrieved Zion intel report: Unaware Schematics 13895 | -5/Extension | Zion Resource Resupply teleported in 14054 | -5/Extension | Build established: Messiah-Mutant 14498 | -5/Extension | Spotted B-75 Beast 14547 | -5/Extension | Disrupted transfer network 14566 | -5/Extension | Destroyed B-75 Beast 14646 | -5/Extension | Spotted B-75 Beast 14664 | -5/Extension | System corruption reached 10% 14699 | -5/Extension | Destroyed B-75 Beast 14711 | -5/Extension | Lost 5 parts (3n2w) 14949 | -5/Extension | Terminal network hard line cut 14995 | -5/Extension | Lost 6 parts (3n2u1w) 15314 | -5/Extension | Rescued A7 15660 | -5/Extension | Discovered new exit (range 10) 15661 | -5/Extension | Discovered new exit (range 6) 15688 | -5/Extension | Identified exit to Factory 15693 | -5/Extension | Identified exit to Cetus 15697 | -5/Extension | Entered Cetus 15697 | -5/Cetus | Accompanied by 8 allies 15702 | -5/Cetus | Acquired a Cetus Manufacturing Module code from A7 15730 | -5/Cetus | Spotted Cetus Guard 15731 | -5/Cetus | Spotted Cetus Guard 15731 | -5/Cetus | Spotted Cetus Guard 15732 | -5/Cetus | Spotted Cetus Guard 15737 | -5/Cetus | Allies destroyed Cetus Guard 15744 | -5/Cetus | Allies destroyed Cetus Guard 15758 | -5/Cetus | Destroyed Cetus Guard 15762 | -5/Cetus | Allies destroyed Cetus Guard 15947 | -5/Cetus | Retrieved Zion intel report: Prototype Schematics 15948 | -5/Cetus | Zion Heavy squad teleported in 15985 | -5/Cetus | Zion Infowar Resupply teleported in 15994 | -5/Cetus | Zion Fire squad teleported in 16059 | -5/Cetus | Discovered new exit (range 15) 16162 | -5/Cetus | Spotted Cetus Guard 16162 | -5/Cetus | Spotted Cetus Guard 16166 | -5/Cetus | Spotted Cetus Guard 16166 | -5/Cetus | Spotted Cetus Guard 16176 | -5/Cetus | Allies destroyed Cetus Guard 16179 | -5/Cetus | Destroyed Cetus Guard 16187 | -5/Cetus | Allies destroyed Cetus Guard 16195 | -5/Cetus | Allies destroyed Cetus Guard 16222 | -5/Cetus | Destroyed A7 16229 | -5/Cetus | Extracted ID and sensor layout for unrecognized location from A7's data core 16271 | -5/Cetus | Discovered exit to Factory (range 15) 16347 | -5/Cetus | Identified exit to Archives 16351 | -5/Cetus | Entered Archives 16351 | -5/Archives | Accompanied by 2 allies 16490 | -5/Archives | Discovered exit to Factory (range 14) 16508 | -5/Archives | Discovered new exit (range 15) 17622 | -5/Archives | Terminal network hard line cut 17629 | -5/Archives | Unable to access archive contents 17678 | -5/Archives | Found Prototype Protection 17678 | -5/Archives | Identified Zio. Weapon Casing 17684 | -5/Archives | Found Prototype Protection 17684 | -5/Archives | Identified Zio. Heavy Carapace 17731 | -5/Archives | Discovered new exit (range 13) 17748 | -5/Archives | Identified exit to Hub_04(d) 17760 | -5/Archives | Entered Hub_04(d) 17763 | -5/Hub_04(d) | Discovered exit to Factory (range 10) 17799 | -5/Hub_04(d) | Zion Light squad teleported in 17918 | -5/Hub_04(d) | Retrieved Zion intel report: Component Schematics 17919 | -5/Hub_04(d) | Zion Fire squad teleported in 17932 | -5/Hub_04(d) | Discovered exit to Factory (range 6) 18171 | -5/Hub_04(d) | Zion Light squad teleported in 18349 | -5/Hub_04(d) | Core integrity fell below 50% 18464 | -5/Hub_04(d) | Core integrity fell below 20% 18480 | -5/Hub_04(d) | Lost 9 parts (1p4n3u1w) 18486 | -5/Hub_04(d) | Destroyed 14 combat bots 18714 | -5/Hub_04(d) | Network Hub disabled 18735 | -5/Hub_04(d) | Network Hub disabled 18744 | -5/Hub_04(d) | Spotted Lightning 18752 | -5/Hub_04(d) | Spotted Lightning 18752 | -5/Hub_04(d) | Spotted Lightning 18755 | -5/Hub_04(d) | Incoming investigation squad redirected 18762 | -5/Hub_04(d) | Spotted Lightning 18763 | -5/Hub_04(d) | Spotted Lightning 18764 | -5/Hub_04(d) | Spotted Lightning 18771 | -5/Hub_04(d) | Entered Factory 18771 | -4/Factory | Evolved 2 slots: Utility x2 18800 | -4/Factory | Lost 6 parts (4n2w) 18999 | -4/Factory | Fabricated Cld. Gravmag System (x1) 19047 | -4/Factory | Fabricated Cld. Gravmag System (x1) 19125 | -4/Factory | Zion Hover Resupply teleported in 19270 | -4/Factory | Local fabrication network quarantined 19271 | -4/Factory | First assault squad dispatched 19347 | -4/Factory | Zion Heavy squad teleported in 19480 | -4/Factory | Retrieved Zion intel report: Component Stockpiles 19481 | -4/Factory | Zion Hacker squad teleported in 19511 | -4/Factory | Retrieved Zion intel report: Prototype Schematics 19595 | -4/Factory | Discovered new exit (range 9) 19599 | -4/Factory | Identified exit to Armory 19599 | -4/Factory | Entered Armory 19695 | -4/Armory | Local fabrication network quarantined 19719 | -4/Armory | Fabricated Exp. Signal Interpreter (x1) 19819 | -4/Armory | Fabricated Adv. Heavy Siege Treads (x2) 19867 | -4/Armory | Zion Light squad teleported in 19914 | -4/Armory | Found Fusion Bomb Launcher 19915 | -4/Armory | Found Fusion Bomb Launcher 19967 | -4/Armory | Found Zio. Weapon Casing 20022 | -4/Armory | Zion Hacker squad teleported in 20099 | -4/Armory | First assault squad dispatched 20201 | -4/Armory | Self-destructed Last Messages --------------- 20189_ Slug penetrates Wall. 20189_ Cld. Gravmag System destroyed. 20191_ Gravmag Array destroyed. 20192_ C-30 ARC bursts open, deploying its payload. 20192_ G-73 Enforcer unfolds itself. 20192_ L-61 Swordsman unfolds itself. 20192_ B-60 Warrior unfolds itself. 20192_ E-15 Imp unfolds itself. 20192_ Lgt. Antimatter Cannon blown off. 20192_ Cmb. Gravmag System blown off. 20192_ E-15 Imp destroyed. 20192_ Adv. Targeting Computer destroyed. 20194_ Imp. Hacking Suite destroyed. 20194_ Lgt. Quantum Reactor destroyed. 20195_ Acquired 14 matter. 20195_ Acquired Unknown Protection. 20195_ Identified Propulsion Shielding. 20197_ Cld. Gravmag System destroyed. 20199_ Slug penetrates Wall. 20199_ Penetrated by Slug. Map ----- +----------------------------------------------------+ | | | | | | | | | | | | | | | | | | | | | | | ??????????????????????????????????################ | | ??????????????????????????????????# # | | ??????????????????????????????????# # | | ?????????????????################## """"" # | | ########?????????# + " """ # | | #?????????# #### / | | ###########]== s #??# # | | "%] #??#######+####+##/ | | #########"######l;;s##"########?# | | #??????# # ; | | ####/#+######## # #### #### ######## | | ###;# b] #??? #??# ????????# | | "" """"""" + h ]] #??? #????????????# | | "=]!=!===" ##### ]] #### #????????#???# | | "[=|=]]!]" #???# ]] @/ #????????????# | | "===**|[=" #???# ]] ####### #?????#??????# | | """""""""" #???# ]] #??????####????????#???# | | #???# #?????????????????????## | | #???##########????????????????? ????? | | #???????????????????????????????????# | | ########??????????????????????????? ???????# | | #??????????????????????????????? ?? ???#?#? | | #??????????????????????????????????????#??? | | #??????????????????????????????????? ?????# | | #?????????????????????????????????????????? | | ##?????????????????????????????????????????? | | # #####???????????????????????????????????? ??? ?? | | ###????????????????????????????????????? ????????? | | ?????????????????????????????????????????????????# | | ???????????????????????????????????????#?????????# | | ?????????????????????????????????????????????????? | | ???????????????????????????????????????? ????"? ?? | | ????????????????????????????????????????????????? | | ??????????????????????????????????????????? ????? | | ???????????????????????????????????????????? ????? | | ?????????????????????????????????????????? ??????? | | ??????????????????????????????????????????""?"?? ? | | ??????????????????????????????????????????????? ?? | | ?????????????????????????????????????????????? ??? | +----------------------------------------------------+ Best States ------------- Heat Dissipation 74 Energy Generation 25 Energy Capacity 350 Matter Stores 600 Matter Capacity 600 Sight Range 22 Robot Scan Range 20 Terrain Scan Range 24 Terrain Scan Density 110 Jamming Range 14 Power Amplification 30 Armor Coverage 625 Resistance: KI 30 Resistance: TH 20 Propulsion Shielding 33 Weapon Shielding 100 Weapon Cycling 15 Phase Shifting 10 Evasion (%) 68 Targeting Accuracy 16 Target Analysis 8 Recoil Reduction 6 Matter Filtering 50 Particle Charging 20 Offensive Hacking 24 Defensive Hacking 14 Item Schematics ----------------- Exp. ECM Suite | -7/Data Miner | Free Tactical Coordination Suite | -7/Data Miner | Free Triangulator | -7/Data Miner | Free Exp. Cesium-ion Thruster | -7/Data Miner | Free Lgt. Regenerative Plating | -7/Data Miner | Free Combat Drone Bay | -7/Data Miner | Free Imp. System Backup Module | -6/Factory | Hacked Hyp. Gauss Cannon | -6/Factory | Hacked Adv. Signal Interpreter | -5/Proximity Caves | Hacked Imp. Thermal Defense Suite | -5/Cetus | Z-intel Exp. Heat Sink | -5/Cetus | Z-intel Enh. Force Rifle | -5/Cetus | Z-intel Prc. Energy Filter | -5/Cetus | Z-intel Thermal Defense Suite | -5/Cetus | Z-intel Tiamat Missile Launcher | -5/Cetus | Z-intel Enh. Coil Gun | -5/Cetus | Z-intel Cld. Gravmag System | -5/Cetus | Z-intel Imp. Matter Compressor | -5/Cetus | Z-intel Lgt. Neutrino Core | -5/Cetus | Z-intel Recoil Nullifier | -5/Hub_04(d) | Z-intel Fusion Compressor | -5/Hub_04(d) | Z-intel Chainsword | -5/Hub_04(d) | Z-intel Imp. Shield Generator | -5/Hub_04(d) | Z-intel Phase Shifter | -5/Hub_04(d) | Z-intel Imp. Recalibrator | -5/Hub_04(d) | Z-intel Adv. Terrain Scan Processor | -5/Hub_04(d) | Z-intel Hvy. Hammer | -5/Hub_04(d) | Z-intel System Backup Module | -5/Hub_04(d) | Z-intel Plasma Cutter | -5/Hub_04(d) | Z-intel Com. Battery | -5/Hub_04(d) | Z-intel Hvy. Mace | -5/Hub_04(d) | Z-intel Hvy. Phase Cannon | -5/Hub_04(d) | Z-intel Lrn. Tractor Beam | -5/Hub_04(d) | Z-intel Imp. Heavy Laser | -4/Factory | Z-intel Com. Ion Cannon | -4/Factory | Z-intel Exp. Targeting Computer | -4/Factory | Z-intel Adv. Matter Compressor | -4/Factory | Z-intel Exp. Signal Interpreter | -4/Factory | Z-intel Antimatter Cannon | -4/Factory | Z-intel Exp. Melee Analysis Suite | -4/Factory | Z-intel Exp. Field Recycling Unit | -4/Factory | Z-intel Enh. Armored Medium Treads | -4/Factory | Z-intel Exp. Optical Array | -4/Factory | Z-intel Robot Schematics ------------------ O-16 Technician | -10/Materials | Hacked I-25 Savior | -8/Materials | Hacked S-27 Virus | -7/Data Miner | Free I-36 Angel | -7/Data Miner | Free G-50 Soldier | -7/Data Miner | Free R-06 Scavenger | -5/Extension | Z-intel T-07 Excavator | -5/Extension | Z-intel B-60 Warrior | -5/Extension | Z-intel Fabricated ------------ Lgt. Regenerative Plating | x1 | -6/Factory G-50 Soldier | x3 | -6/Factory Tactical Coordination Suite | x1 | -5/Factory Cld. Gravmag System | x1 | -4/Factory Cld. Gravmag System | x1 | -4/Factory Exp. Signal Interpreter | x1 | -4/Armory Adv. Heavy Siege Treads | x2 | -4/Armory | Preloaded Alien Tech Used ----------------- None Achievements -------------- Beloved Challenges ------------ None Game ------ Seed RelayXenonShredder Manual? 0 Play Time 03:07:25 Cumulative 259.7 hours Start 2019.11.06 @ 01:02:25 End 2019.11.06 @ 17:40:13 Sessions 3 Manual Loads 0 Difficulty Rogue Special Mode None Game No. 203 Rogue 203 Adventurer 0 Explorer 0 Win Type - Total 3 Types 3/0/0/0/0/0/0 Lore% 73 Gallery% 77 Achievement% 54 Wizard Run 0 Options --------- ASCII 0 Keyboard 0 Movement Mouse Keybinds 1 Fullscreen 2 Font 24/Smallcaps Map View 76x50 Tactical HUD 1 Map Filters NONE Filters NONE Steam 1 RUN: 7889fd2e-d3d5-4fed-bb81-90c74c87cd32